{"text_format":"1","workbook":"xlsx","n_sheets":1,"sheets":["Список файлов"],"not_rendered":{"charts":0,"images":0,"macros":1,"external_links":0,"defined_names":1,"comments":0,"pivot_tables":0},"unopened":[],"bounds":{"document_bytes":16777216,"sheet_cells":100000,"rows_first":2000,"rows_last":500,"rows_between":2000,"halvings":0,"cell_chars":16384,"cell_head_chars":4096},"cells_cut":0,"cells_raw":0,"read":"whole","date_system":"1900"}

{"sheet":"Список файлов","index":0,"n_rows":627,"n_cols":7,"rows_kept":627,"cut":false,"hidden":false,"merged":[]}
[null,"Папка с файлами:","X:\\new_catalog\\1stplayer\\infinite_space_6"]
[null,"Маска файлов:",".jpg"]
[null,"Глубина поиска:",2,null,null,null,{"$f":"_xlfn.TEXTJOIN(\"|\",TRUE,G6:G15)","v":{"$error":"#NAME?"}}]
[null,null,null,null,null,null,"Заменяет \\ на /"]
["№","Имя файла","Полный путь","Дата создания","Размер, байт","ПЛЮС IP","ССЫЛКИ"]
[null,null,null,null,null,{"$f":"SUBSTITUTE(C6,\"X:\",\"http://89.188.126.15:8080\")","v":""},{"$f":"SUBSTITUTE(F6,\"\\\",\"/\")","v":""}]
[null,null,null,null,null,{"$f":"SUBSTITUTE(C7,\"X:\",\"http://89.188.126.15:8080\")","v":""},""]
[null,null,null,null,null,"",""]
[null,null,null,null,null,"",""]
[null,null,null,null,null,"",""]
[null,null,null,null,null,"",""]
[null,null,null,null,null,"",""]
[null,null,null,null,null,"",""]
[null,null,null,null,null,"",""]
[null,null,null,null,null,"",""]
[null,null,null,null,null,"",""]
[null,null,null,null,null,"",""]
[null,null,null,null,null,"",""]
[null,null,null,null,null,"",""]
[null,null,null,null,null,"",""]
[null,null,null,null,null,"",""]
[null,null,null,null,null,"",""]
[null,null,null,null,null,"",""]
[null,null,null,null,null,"",""]
[null,null,null,null,null,"",""]
[null,null,null,null,null,"",""]
[null,null,null,null,null,"",""]
[null,null,null,null,null,"",""]
[null,null,null,null,null,"",""]
[null,null,null,null,null,"",""]
[null,null,null,null,null,"",""]
[null,null,null,null,null,"",""]
[null,null,null,null,null,"",""]
[null,null,null,null,null,"",""]
[null,null,null,null,null,"",""]
[null,null,null,null,null,"",""]
[null,null,null,null,null,"",""]
[null,null,null,null,null,"",""]
[null,null,null,null,null,"",""]
[null,null,null,null,null,"",""]
[null,null,null,null,null,"",""]
[null,null,null,null,null,"",""]
[null,null,null,null,null,"",""]
[null,null,null,null,null,"",""]
[null,null,null,null,null,"",""]
[null,null,null,null,null,"",""]
[null,null,null,null,null,"",""]
[null,null,null,null,null,"",""]
[null,null,null,null,null,"",""]
[null,null,null,null,null,"",""]
[null,null,null,null,null,"",""]
[null,null,null,null,null,"",""]
[null,null,null,null,null,"",""]
[null,null,null,null,null,"",""]
[null,null,null,null,null,"",""]
[null,null,null,null,null,"",""]
[null,null,null,null,null,"",""]
[null,null,null,null,null,"",""]
[null,null,null,null,null,"",""]
[null,null,null,null,null,"",""]
[null,null,null,null,null,"",""]
[null,null,null,null,null,"",""]
[null,null,null,null,null,"",""]
[null,null,null,null,null,"",""]
[null,null,null,null,null,"",""]
[null,null,null,null,null,"",""]
[null,null,null,null,null,"",""]
[null,null,null,null,null,"",""]
[null,null,null,null,null,"",""]
[null,null,null,null,null,"",{"$f":"SUBSTITUTE(F70,\"\\\",\"/\")","v":""}]
[null,null,null,null,null,{"$f":"SUBSTITUTE(C71,\"X:\",\"http://89.188.126.15:8080\")","v":""},""]
[null,null,null,null,null,"",""]
[null,null,null,null,null,"",""]
[null,null,null,null,null,"",""]
[null,null,null,null,null,"",""]
[null,null,null,null,null,"",""]
[null,null,null,null,null,"",""]
[null,null,null,null,null,"",""]
[null,null,null,null,null,"",""]
[null,null,null,null,null,"",""]
[null,null,null,null,null,"",""]
[null,null,null,null,null,"",""]
[null,null,null,null,null,"",""]
[null,null,null,null,null,"",""]
[null,null,null,null,null,"",""]
[null,null,null,null,null,"",""]
[null,null,null,null,null,"",""]
[null,null,null,null,null,"",""]
[null,null,null,null,null,"",""]
[null,null,null,null,null,"",""]
[null,null,null,null,null,"",""]
[null,null,null,null,null,"",""]
[null,null,null,null,null,"",""]
[null,null,null,null,null,"",""]
[null,null,null,null,null,"",""]
[null,null,null,null,null,"",""]
[null,null,null,null,null,"",""]
[null,null,null,null,null,"",""]
[null,null,null,null,null,"",""]
[null,null,null,null,null,"",""]
[null,null,null,null,null,"",""]
[null,null,null,null,null,"",""]
[null,null,null,null,null,"",""]
[null,null,null,null,null,"",""]
[null,null,null,null,null,"",""]
[null,null,null,null,null,"",""]
[null,null,null,null,null,"",""]
[null,null,null,null,null,"",""]
[null,null,null,null,null,"",""]
[null,null,null,null,null,"",""]
[null,null,null,null,null,"",""]
[null,null,null,null,null,"",""]
[null,null,null,null,null,"",""]
[null,null,null,null,null,"",""]
[null,null,null,null,null,"",""]
[null,null,null,null,null,"",""]
[null,null,null,null,null,"",""]
[null,null,null,null,null,"",""]
[null,null,null,null,null,"",""]
[null,null,null,null,null,"",""]
[null,null,null,null,null,"",""]
[null,null,null,null,null,"",""]
[null,null,null,null,null,"",""]
[null,null,null,null,null,"",""]
[null,null,null,null,null,"",""]
[null,null,null,null,null,"",""]
[null,null,null,null,null,"",""]
[null,null,null,null,null,"",""]
[null,null,null,null,null,"",""]
[null,null,null,null,null,"",""]
[null,null,null,null,null,"",""]
[null,null,null,null,null,"",""]
[null,null,null,null,null,"",""]
[null,null,null,null,null,"",{"$f":"SUBSTITUTE(F134,\"\\\",\"/\")","v":""}]
[null,null,null,null,null,{"$f":"SUBSTITUTE(C135,\"X:\",\"http://89.188.126.15:8080\")","v":""},""]
[null,null,null,null,null,"",""]
[null,null,null,null,null,"",""]
[null,null,null,null,null,"",""]
[null,null,null,null,null,"",""]
[null,null,null,null,null,"",""]
[null,null,null,null,null,"",""]
[null,null,null,null,null,"",""]
[null,null,null,null,null,"",""]
[null,null,null,null,null,"",""]
[null,null,null,null,null,"",""]
[null,null,null,null,null,"",""]
[null,null,null,null,null,"",""]
[null,null,null,null,null,"",""]
[null,null,null,null,null,"",""]
[null,null,null,null,null,"",""]
[null,null,null,null,null,"",""]
[null,null,null,null,null,"",""]
[null,null,null,null,null,"",""]
[null,null,null,null,null,"",""]
[null,null,null,null,null,"",""]
[null,null,null,null,null,"",""]
[null,null,null,null,null,"",""]
[null,null,null,null,null,"",""]
[null,null,null,null,null,"",""]
[null,null,null,null,null,"",""]
[null,null,null,null,null,"",""]
[null,null,null,null,null,"",""]
[null,null,null,null,null,"",""]
[null,null,null,null,null,"",""]
[null,null,null,null,null,"",""]
[null,null,null,null,null,"",""]
[null,null,null,null,null,"",""]
[null,null,null,null,null,"",""]
[null,null,null,null,null,"",""]
[null,null,null,null,null,"",""]
[null,null,null,null,null,"",""]
[null,null,null,null,null,"",""]
[null,null,null,null,null,"",""]
[null,null,null,null,null,"",""]
[null,null,null,null,null,"",""]
[null,null,null,null,null,"",""]
[null,null,null,null,null,"",""]
[null,null,null,null,null,"",""]
[null,null,null,null,null,"",""]
[null,null,null,null,null,"",""]
[null,null,null,null,null,"",""]
[null,null,null,null,null,"",""]
[null,null,null,null,null,"",""]
[null,null,null,null,null,"",""]
[null,null,null,null,null,"",""]
[null,null,null,null,null,"",""]
[null,null,null,null,null,"",""]
[null,null,null,null,null,"",""]
[null,null,null,null,null,"",""]
[null,null,null,null,null,"",""]
[null,null,null,null,null,"",""]
[null,null,null,null,null,"",""]
[null,null,null,null,null,"",""]
[null,null,null,null,null,"",""]
[null,null,null,null,null,"",""]
[null,null,null,null,null,"",""]
[null,null,null,null,null,"",""]
[null,null,null,null,null,"",{"$f":"SUBSTITUTE(F198,\"\\\",\"/\")","v":""}]
[null,null,null,null,null,{"$f":"SUBSTITUTE(C199,\"X:\",\"http://89.188.126.15:8080\")","v":""},""]
[null,null,null,null,null,"",""]
[null,null,null,null,null,"",""]
[null,null,null,null,null,"",""]
[null,null,null,null,null,"",""]
[null,null,null,null,null,"",""]
[null,null,null,null,null,"",""]
[null,null,null,null,null,"",""]
[null,null,null,null,null,"",""]
[null,null,null,null,null,"",""]
[null,null,null,null,null,"",""]
[null,null,null,null,null,"",""]
[null,null,null,null,null,"",""]
[null,null,null,null,null,"",""]
[null,null,null,null,null,"",""]
[null,null,null,null,null,"",""]
[null,null,null,null,null,"",""]
[null,null,null,null,null,"",""]
[null,null,null,null,null,"",""]
[null,null,null,null,null,"",""]
[null,null,null,null,null,"",""]
[null,null,null,null,null,"",""]
[null,null,null,null,null,"",""]
[null,null,null,null,null,"",""]
[null,null,null,null,null,"",""]
[null,null,null,null,null,"",""]
[null,null,null,null,null,"",""]
[null,null,null,null,null,"",""]
[null,null,null,null,null,"",""]
[null,null,null,null,null,"",""]
[null,null,null,null,null,"",""]
[null,null,null,null,null,"",""]
[null,null,null,null,null,"",""]
[null,null,null,null,null,"",""]
[null,null,null,null,null,"",""]
[null,null,null,null,null,"",""]
[null,null,null,null,null,"",""]
[null,null,null,null,null,"",""]
[null,null,null,null,null,"",""]
[null,null,null,null,null,"",""]
[null,null,null,null,null,"",""]
[null,null,null,null,null,"",""]
[null,null,null,null,null,"",""]
[null,null,null,null,null,"",""]
[null,null,null,null,null,"",""]
[null,null,null,null,null,"",""]
[null,null,null,null,null,"",""]
[null,null,null,null,null,"",""]
[null,null,null,null,null,"",""]
[null,null,null,null,null,"",""]
[null,null,null,null,null,"",""]
[null,null,null,null,null,"",""]
[null,null,null,null,null,"",""]
[null,null,null,null,null,"",""]
[null,null,null,null,null,"",""]
[null,null,null,null,null,"",""]
[null,null,null,null,null,"",""]
[null,null,null,null,null,"",""]
[null,null,null,null,null,"",""]
[null,null,null,null,null,"",""]
[null,null,null,null,null,"",""]
[null,null,null,null,null,"",""]
[null,null,null,null,null,"",""]
[null,null,null,null,null,"",{"$f":"SUBSTITUTE(F262,\"\\\",\"/\")","v":""}]
[null,null,null,null,null,{"$f":"SUBSTITUTE(C263,\"X:\",\"http://89.188.126.15:8080\")","v":""},""]
[null,null,null,null,null,"",""]
[null,null,null,null,null,"",""]
[null,null,null,null,null,"",""]
[null,null,null,null,null,"",""]
[null,null,null,null,null,"",""]
[null,null,null,null,null,"",""]
[null,null,null,null,null,"",""]
[null,null,null,null,null,"",""]
[null,null,null,null,null,"",""]
[null,null,null,null,null,"",""]
[null,null,null,null,null,"",""]
[null,null,null,null,null,"",""]
[null,null,null,null,null,"",""]
[null,null,null,null,null,"",""]
[null,null,null,null,null,"",""]
[null,null,null,null,null,"",""]
[null,null,null,null,null,"",""]
[null,null,null,null,null,"",""]
[null,null,null,null,null,"",""]
[null,null,null,null,null,"",""]
[null,null,null,null,null,"",""]
[null,null,null,null,null,"",""]
[null,null,null,null,null,"",""]
[null,null,null,null,null,"",""]
[null,null,null,null,null,"",""]
[null,null,null,null,null,"",""]
[null,null,null,null,null,"",""]
[null,null,null,null,null,"",""]
[null,null,null,null,null,"",""]
[null,null,null,null,null,"",""]
[null,null,null,null,null,"",""]
[null,null,null,null,null,"",""]
[null,null,null,null,null,"",""]
[null,null,null,null,null,"",""]
[null,null,null,null,null,"",""]
[null,null,null,null,null,"",""]
[null,null,null,null,null,"",""]
[null,null,null,null,null,"",""]
[null,null,null,null,null,"",""]
[null,null,null,null,null,"",""]
[null,null,null,null,null,"",""]
[null,null,null,null,null,"",""]
[null,null,null,null,null,"",""]
[null,null,null,null,null,"",""]
[null,null,null,null,null,"",""]
[null,null,null,null,null,"",""]
[null,null,null,null,null,"",""]
[null,null,null,null,null,"",""]
[null,null,null,null,null,"",""]
[null,null,null,null,null,"",""]
[null,null,null,null,null,"",""]
[null,null,null,null,null,"",""]
[null,null,null,null,null,"",""]
[null,null,null,null,null,"",""]
[null,null,null,null,null,"",""]
[null,null,null,null,null,"",""]
[null,null,null,null,null,"",""]
[null,null,null,null,null,"",""]
[null,null,null,null,null,"",""]
[null,null,null,null,null,"",""]
[null,null,null,null,null,"",""]
[null,null,null,null,null,"",""]
[null,null,null,null,null,"",{"$f":"SUBSTITUTE(F326,\"\\\",\"/\")","v":""}]
[null,null,null,null,null,{"$f":"SUBSTITUTE(C327,\"X:\",\"http://89.188.126.15:8080\")","v":""},""]
[null,null,null,null,null,"",""]
[null,null,null,null,null,"",""]
[null,null,null,null,null,"",""]
[null,null,null,null,null,"",""]
[null,null,null,null,null,"",""]
[null,null,null,null,null,"",""]
[null,null,null,null,null,"",""]
[null,null,null,null,null,"",""]
[null,null,null,null,null,"",""]
[null,null,null,null,null,"",""]
[null,null,null,null,null,"",""]
[null,null,null,null,null,"",""]
[null,null,null,null,null,"",""]
[null,null,null,null,null,"",""]
[null,null,null,null,null,"",""]
[null,null,null,null,null,"",""]
[null,null,null,null,null,"",""]
[null,null,null,null,null,"",""]
[null,null,null,null,null,"",""]
[null,null,null,null,null,"",""]
[null,null,null,null,null,"",""]
[null,null,null,null,null,"",""]
[null,null,null,null,null,"",""]
[null,null,null,null,null,"",""]
[null,null,null,null,null,"",""]
[null,null,null,null,null,"",""]
[null,null,null,null,null,"",""]
[null,null,null,null,null,"",""]
[null,null,null,null,null,"",""]
[null,null,null,null,null,"",""]
[null,null,null,null,null,"",""]
[null,null,null,null,null,"",""]
[null,null,null,null,null,"",""]
[null,null,null,null,null,"",""]
[null,null,null,null,null,"",""]
[null,null,null,null,null,"",""]
[null,null,null,null,null,"",""]
[null,null,null,null,null,"",""]
[null,null,null,null,null,"",""]
[null,null,null,null,null,"",""]
[null,null,null,null,null,"",""]
[null,null,null,null,null,"",""]
[null,null,null,null,null,"",""]
[null,null,null,null,null,"",""]
[null,null,null,null,null,"",""]
[null,null,null,null,null,"",""]
[null,null,null,null,null,"",""]
[null,null,null,null,null,"",""]
[null,null,null,null,null,"",""]
[null,null,null,null,null,"",""]
[null,null,null,null,null,"",""]
[null,null,null,null,null,"",""]
[null,null,null,null,null,"",""]
[null,null,null,null,null,"",""]
[null,null,null,null,null,"",""]
[null,null,null,null,null,"",""]
[null,null,null,null,null,"",""]
[null,null,null,null,null,"",""]
[null,null,null,null,null,"",""]
[null,null,null,null,null,"",""]
[null,null,null,null,null,"",""]
[null,null,null,null,null,"",""]
[null,null,null,null,null,"",{"$f":"SUBSTITUTE(F390,\"\\\",\"/\")","v":""}]
[null,null,null,null,null,{"$f":"SUBSTITUTE(C391,\"X:\",\"http://89.188.126.15:8080\")","v":""},""]
[null,null,null,null,null,"",""]
[null,null,null,null,null,"",""]
[null,null,null,null,null,"",""]
[null,null,null,null,null,"",""]
[null,null,null,null,null,"",""]
[null,null,null,null,null,"",""]
[null,null,null,null,null,"",""]
[null,null,null,null,null,"",""]
[null,null,null,null,null,"",""]
[null,null,null,null,null,"",""]
[null,null,null,null,null,"",""]
[null,null,null,null,null,"",""]
[null,null,null,null,null,"",""]
[null,null,null,null,null,"",""]
[null,null,null,null,null,"",""]
[null,null,null,null,null,"",""]
[null,null,null,null,null,"",""]
[null,null,null,null,null,"",""]
[null,null,null,null,null,"",""]
[null,null,null,null,null,"",""]
[null,null,null,null,null,"",""]
[null,null,null,null,null,"",""]
[null,null,null,null,null,"",""]
[null,null,null,null,null,"",""]
[null,null,null,null,null,"",""]
[null,null,null,null,null,"",""]
[null,null,null,null,null,"",""]
[null,null,null,null,null,"",""]
[null,null,null,null,null,"",""]
[null,null,null,null,null,"",""]
[null,null,null,null,null,"",""]
[null,null,null,null,null,"",""]
[null,null,null,null,null,"",""]
[null,null,null,null,null,"",""]
[null,null,null,null,null,"",""]
[null,null,null,null,null,"",""]
[null,null,null,null,null,"",""]
[null,null,null,null,null,"",""]
[null,null,null,null,null,"",""]
[null,null,null,null,null,"",""]
[null,null,null,null,null,"",""]
[null,null,null,null,null,"",""]
[null,null,null,null,null,"",""]
[null,null,null,null,null,"",""]
[null,null,null,null,null,"",""]
[null,null,null,null,null,"",""]
[null,null,null,null,null,"",""]
[null,null,null,null,null,"",""]
[null,null,null,null,null,"",""]
[null,null,null,null,null,"",""]
[null,null,null,null,null,"",""]
[null,null,null,null,null,"",""]
[null,null,null,null,null,"",""]
[null,null,null,null,null,"",""]
[null,null,null,null,null,"",""]
[null,null,null,null,null,"",""]
[null,null,null,null,null,"",""]
[null,null,null,null,null,"",""]
[null,null,null,null,null,"",""]
[null,null,null,null,null,"",""]
[null,null,null,null,null,"",""]
[null,null,null,null,null,"",""]
[null,null,null,null,null,"",{"$f":"SUBSTITUTE(F454,\"\\\",\"/\")","v":""}]
[null,null,null,null,null,{"$f":"SUBSTITUTE(C455,\"X:\",\"http://89.188.126.15:8080\")","v":""},""]
[null,null,null,null,null,"",""]
[null,null,null,null,null,"",""]
[null,null,null,null,null,"",""]
[null,null,null,null,null,"",""]
[null,null,null,null,null,"",""]
[null,null,null,null,null,"",""]
[null,null,null,null,null,"",""]
[null,null,null,null,null,"",""]
[null,null,null,null,null,"",""]
[null,null,null,null,null,"",""]
[null,null,null,null,null,"",""]
[null,null,null,null,null,"",""]
[null,null,null,null,null,"",""]
[null,null,null,null,null,"",""]
[null,null,null,null,null,"",""]
[null,null,null,null,null,"",""]
[null,null,null,null,null,"",""]
[null,null,null,null,null,"",""]
[null,null,null,null,null,"",""]
[null,null,null,null,null,"",""]
[null,null,null,null,null,"",""]
[null,null,null,null,null,"",""]
[null,null,null,null,null,"",""]
[null,null,null,null,null,"",""]
[null,null,null,null,null,{"$f":"SUBSTITUTE(C480,\"X:\",\"http://146.66.191.151:8080\")","v":""},""]
[null,null,null,null,null,"",""]
[null,null,null,null,null,"",""]
[null,null,null,null,null,"",""]
[null,null,null,null,null,"",""]
[null,null,null,null,null,"",""]
[null,null,null,null,null,"",""]
[null,null,null,null,null,"",""]
[null,null,null,null,null,"",""]
[null,null,null,null,null,"",""]
[null,null,null,null,null,"",""]
[null,null,null,null,null,"",""]
[null,null,null,null,null,"",""]
[null,null,null,null,null,"",""]
[null,null,null,null,null,"",""]
[null,null,null,null,null,"",""]
[null,null,null,null,null,"",""]
[null,null,null,null,null,"",""]
[null,null,null,null,null,"",""]
[null,null,null,null,null,"",""]
[null,null,null,null,null,"",""]
[null,null,null,null,null,"",""]
[null,null,null,null,null,"",""]
[null,null,null,null,null,"",""]
[null,null,null,null,null,"",""]
[null,null,null,null,null,"",""]
[null,null,null,null,null,"",""]
[null,null,null,null,null,"",""]
[null,null,null,null,null,"",""]
[null,null,null,null,null,"",""]
[null,null,null,null,null,"",""]
[null,null,null,null,null,"",""]
[null,null,null,null,null,"",""]
[null,null,null,null,null,"",""]
[null,null,null,null,null,"",""]
[null,null,null,null,null,"",""]
[null,null,null,null,null,"",""]
[null,null,null,null,null,"",""]
[null,null,null,null,null,{"$f":"SUBSTITUTE(C518,\"X:\",\"http://146.66.191.151:8080\")","v":""},{"$f":"SUBSTITUTE(F518,\"\\\",\"/\")","v":""}]
[null,null,null,null,null,"",""]
[null,null,null,null,null,"",""]
[null,null,null,null,null,"",""]
[null,null,null,null,null,"",""]
[null,null,null,null,null,"",""]
[null,null,null,null,null,"",""]
[null,null,null,null,null,"",""]
[null,null,null,null,null,"",""]
[null,null,null,null,null,"",""]
[null,null,null,null,null,"",""]
[null,null,null,null,null,"",""]
[null,null,null,null,null,"",""]
[null,null,null,null,null,"",""]
[null,null,null,null,null,"",""]
[null,null,null,null,null,"",""]
[null,null,null,null,null,"",""]
[null,null,null,null,null,"",""]
[null,null,null,null,null,"",""]
[null,null,null,null,null,"",""]
[null,null,null,null,null,"",""]
[null,null,null,null,null,"",""]
[null,null,null,null,null,"",""]
[null,null,null,null,null,"",""]
[null,null,null,null,null,"",""]
[null,null,null,null,null,"",""]
[null,null,null,null,null,"",""]
[null,null,null,null,null,"",""]
[null,null,null,null,null,"",""]
[null,null,null,null,null,"",""]
[null,null,null,null,null,"",""]
[null,null,null,null,null,"",""]
[null,null,null,null,null,"",""]
[null,null,null,null,null,"",""]
[null,null,null,null,null,"",""]
[null,null,null,null,null,"",""]
[null,null,null,null,null,"",""]
[null,null,null,null,null,"",""]
[null,null,null,null,null,"",""]
[null,null,null,null,null,"",""]
[null,null,null,null,null,"",""]
[null,null,null,null,null,"",""]
[null,null,null,null,null,"",""]
[null,null,null,null,null,"",""]
[null,null,null,null,null,"",""]
[null,null,null,null,null,"",""]
[null,null,null,null,null,"",""]
[null,null,null,null,null,"",""]
[null,null,null,null,null,"",""]
[null,null,null,null,null,"",""]
[null,null,null,null,null,"",""]
[null,null,null,null,null,"",""]
[null,null,null,null,null,"",""]
[null,null,null,null,null,"",""]
[null,null,null,null,null,"",""]
[null,null,null,null,null,"",""]
[null,null,null,null,null,"",""]
[null,null,null,null,null,"",""]
[null,null,null,null,null,"",""]
[null,null,null,null,null,"",""]
[null,null,null,null,null,"",""]
[null,null,null,null,null,"",""]
[null,null,null,null,null,"",""]
[null,null,null,null,null,"",""]
[null,null,null,null,null,{"$f":"SUBSTITUTE(C582,\"X:\",\"http://146.66.191.151:8080\")","v":""},{"$f":"SUBSTITUTE(F582,\"\\\",\"/\")","v":""}]
[null,null,null,null,null,"",""]
[null,null,null,null,null,"",""]
[null,null,null,null,null,"",""]
[null,null,null,null,null,"",""]
[null,null,null,null,null,"",""]
[null,null,null,null,null,"",""]
[null,null,null,null,null,"",""]
[null,null,null,null,null,"",""]
[null,null,null,null,null,"",""]
[null,null,null,null,null,"",""]
[null,null,null,null,null,"",""]
[null,null,null,null,null,"",""]
[null,null,null,null,null,"",""]
[null,null,null,null,null,"",""]
[null,null,null,null,null,"",""]
[null,null,null,null,null,"",""]
[null,null,null,null,null,"",""]
[null,null,null,null,null,"",""]
[null,null,null,null,null,"",""]
[null,null,null,null,null,"",""]
[null,null,null,null,null,"",""]
[null,null,null,null,null,"",""]
[null,null,null,null,null,"",""]
[null,null,null,null,null,"",""]
[null,null,null,null,null,"",""]
[null,null,null,null,null,"",""]
[null,null,null,null,null,"",""]
[null,null,null,null,null,"",""]
[null,null,null,null,null,"",""]
[null,null,null,null,null,"",""]
[null,null,null,null,null,"",""]
[null,null,null,null,null,"",""]
[null,null,null,null,null,"",""]
[null,null,null,null,null,"",""]
[null,null,null,null,null,"",""]
[null,null,null,null,null,"",""]
[null,null,null,null,null,"",""]
[null,null,null,null,null,"",""]
[null,null,null,null,null,"",""]
[null,null,null,null,null,"",""]
[null,null,null,null,null,"",""]
[null,null,null,null,null,"",""]
[null,null,null,null,null,"",""]
[null,null,null,null,null,"",""]
[null,null,null,null,null,"",""]